Cogmind - Beta 13 *** ADVENTURER MODE // 2024.07.23 @ 14:04:35 Player: Jefffff Result: Destroyed by G-50 Soldier with Heavy Laser Performance ------------- Evolutions (4) 2000 Regions Visited (10) 2000 Robots Destroyed (193) 965 Value Destroyed (6716) 6716 Prototype IDs (11) 220 Alien Tech Used (0) 0 Bonus (641) 641 TOTAL SCORE: 12542 Bonus ------- High Alert Combat Kills 26 Follower Combat Kills 615 Cogmind --------- Core Integrity 0/850 Matter 64/300 Energy 100/100 System Corruption 0% Temperature Cool (9) Movement Core (1500) Ox29 Location -6/Factory Parts ------- > --- POWER (2) -------- (None) > --- PROPULSION (5) --- (None) > --- UTILITY (6) ------ Huge Storage Unit Improved Salvage Targeting Computer Target Analyzer Improved Utility Shielding Improved Utility Shielding Corruption Screen > --- WEAPON (2) ------- Mini Assault Cannon > --- INVENTORY (25) --- Hybrid Fission Core Improved Cooling System Coolant Injector Advanced Terrain Scan Processor Transport Network Coupler Improved Core Shielding Improved Light Armor Plating Dynamic Insulation System System Restoration Module Recalibrator Remote Datajack Plasma Cutter Peak State ------------ > --- POWER ------------ Antimatter Reactor Reinforced Antimatter Reactor > --- PROPULSION ------- Improved Treads Heavy Treads Heavy Treads > --- UTILITY ---------- Advanced Heat Sink Huge Storage Unit Improved Salvage Targeting Computer Improved Core Shielding Focal Shield Corruption Screen > --- WEAPON ----------- 01-MTF's Shockpuncher Mini Assault Cannon > --- INVENTORY -------- Light Angular Momentum Engine Light Angular Momentum Engine Light Angular Momentum Engine Light Angular Momentum Engine Light Fission Core Light Treads Improved Cooling System Coolant Injector Advanced Terrain Scan Processor Transport Network Coupler Target Analyzer Improved Utility Shielding Improved Utility Shielding Improved Light Armor Plating Improved Light Armor Plating Dynamic Insulation System System Restoration Module Recalibrator Particle Gun Advanced Plasma Cannon Improved Assault Rifle Heavy Missile Launcher Remote Datajack Plasma Cutter Flail [Rating: 84] Favorites ----------- Power Heavy Deuterium Engine Engine Heavy Deuterium Engine Power Core Nuclear Core Reactor Reinforced Antimatter Reactor Propulsion Armored Treads Treads Armored Treads Leg VSS Leg Wheel Wheel Utility Huge Storage Unit Device Improved Heat Sink Storage Huge Storage Unit Processor Improved Targeting Computer Protection Core Shielding Weapon Axe Energy Gun 01-MTF's Shockpuncher Energy Cannon Plasma Cannon Ballistic Gun High-powered Shotgun Ballistic Cannon Gauss Cannon Launcher Heavy Missile Launcher Special Weapon Plasma Cutter Impact Weapon Hammer Slashing Weapon Axe Build | -11 -10 -10 -9 -9 -8 -7 -7 -6 -6 -6 ------- Run | Yrd Mat Min Mat Min Mat Fac Sto Fac Was Fac Slots Evolved 8 | . . . 2 . 2 2 . 2 . . Power 1 | . . . . . . . . 1 . . Propulsion 3 | . . . . . 1 1 . 1 . . Utility 4 | . . . 2 . 1 1 . . . . Weapon . | . . . . . . . . . . . Parts Attached 204 | 6 4 1 16 16 15 54 60 7 4 21 Power 25 | 1 1 . 2 3 1 6 3 3 2 3 Engine 18 | 1 1 . 2 3 1 4 2 2 . 2 Core 5 | . . . . . . 2 1 1 . 1 Reactor 2 | . . . . . . . . . 2 . Propulsion 61 | 2 . . 4 11 4 15 19 1 2 3 Treads 27 | . . . . . 3 2 18 1 2 1 Leg 14 | . . . . . . 13 1 . . . Wheel 20 | 2 . . 4 11 1 . . . . 2 Hover . | . . . . . . . . . . . Flight . | . . . . . . . . . . . Utility 83 | 1 1 1 4 2 9 26 26 3 . 10 Device 27 | . . . . 1 1 9 10 2 . 4 Storage 4 | 1 . 1 . 1 1 . . . . . Processor 9 | . 1 . 1 . . 4 1 1 . 1 Hackware . | . . . . . . . . . . . Protection 43 | . . . 3 . 7 13 15 . . 5 Artifact . | . . . . . . . . . . . Weapon 35 | 2 2 . 6 . 1 7 12 . . 5 Energy Gun 5 | 1 . . . . . . 4 . . . Energy Cannon 4 | . . . 2 . . 1 . . . 1 Ballistic Gun 3 | 1 . . . . . 1 . . . 1 Ballistic Cannon 10 | . . . . . . 4 4 . . 2 Launcher 1 | . . . . . . . . . . 1 Special Weapon 2 | . . . . . . . 2 . . . Impact Weapon 3 | . 2 . . . . . 1 . . . Slashing Weapon 7 | . . . 4 . 1 1 1 . . . Piercing Weapon . | . . . . . . . . . . . Special Melee Weapon . | . . . . . . . . . . . Unidentified Prototypes 4 | . . . 1 . . 1 1 . . 1 Parts Lost 48 | . 1 . . 3 1 5 18 . . 20 Power 10 | . 1 . . 2 . . 2 . . 5 Propulsion 17 | . . . . 1 . 2 8 . . 6 Utility 14 | . . . . . . 3 7 . . 4 Weapon 7 | . . . . . 1 . 1 . . 5 Highest Loss Streak 17 | . 1 . . 2 1 2 7 . . 17 To Critical Strikes 1 | . . . . . . . . . . 1 Average Slot Usage (%) 97 | . 90 100 99 96 99 99 98 98 95 82 Engine 6 | . 14 14 11 7 9 4 6 12 5 . Reactor 1 | . . . . . . . . . 6 12 Treads 12 | . . . . . 22 2 27 31 28 18 Leg 9 | . . . . . . 27 1 . . . Wheel 5 | . 28 28 22 21 4 . . . . . Device 11 | . . . . 4 13 14 14 14 13 11 Storage 8 | . 14 14 11 11 9 7 7 6 6 6 Processor 8 | . 5 14 11 11 9 10 2 11 13 13 Protection 14 | . . . 21 17 13 11 20 6 6 6 Energy Gun 2 | . 1 . . . . . 5 6 6 5 Energy Cannon 1 | . . . . . . 2 . . . . Ballistic Cannon 4 | . . . . . . 5 6 6 6 5 Impact Weapon 1 | . 20 28 1 . . . . . . . Slashing Weapon 6 | . . . 20 22 17 3 . . . . Naked Turns . | . . . . . . . . . . . Heaviest Build 137 | 11 14 19 23 33 110 118 135 119 132 137 Greatest Support 163 | 26 26 26 26 26 60 82 91 111 163 163 Greatest Overweight (x) 30 | . . . 1 1 1 3 2 1 1 30 Average Overweight (x) . | . . . . . . 1 1 . . . Largest Inventory Capacity 25 | 8 8 10 10 15 25 25 25 25 25 25 Average Capacity 21 | 6 8 8 10 14 18 25 25 25 25 25 Most Carried 25 | 4 8 10 10 15 25 25 25 25 25 25 Average Carried 20 | . 4 8 9 13 17 24 24 24 24 23 Final Capacity 25 | 8 8 10 10 15 25 25 25 25 25 25 Final Carried 25 | . 7 10 10 15 25 25 25 25 24 12 Class Distribution -------------------- 42% | Mutant 38% | Scavenger-Mutant 6% | Gladiator 4% | Commander-Mutant 4% | Scavenger-Gladiator 3% | Derelict-Mutant Dominant Class ---------------- Mutant | -10/Materials Mutant | -10/Mines Mutant | -9/Materials Scavenger-Mutant | -9/Mines Gladiator | -8/Materials Scavenger-Mutant | -7/Factory Mutant | -7/Storage Commander-Mutant | -6/Factory Commander-Mutant | -6/Waste Scavenger-Mutant | -6/Factory Resources | -11 -10 -10 -9 -9 -8 -7 -7 -6 -6 -6 ----------- Run | Yrd Mat Min Mat Min Mat Fac Sto Fac Was Fac Matter Collected 4296 | 208 84 38 367 165 150 1067 1710 16 123 368 Remotely . | . . . . . . . . . . . Salvage Created 6743 | . 360 71 563 454 713 1606 2373 16 . 587 Parts 346 | . 6 . 34 37 45 89 116 4 . 15 Haulers Intercepted 12 | . 1 . 2 . 1 1 6 . . 1 Recyclers Shooed 1 | . . . . . . . . . . 1 Parts Field Recycled 3 | . . . . . . 3 . . . . Retrieved Matter 21 | . . . . . . 21 . . . . Parts Self-Destructed . | . . . . . . . . . . . Prevented . | . . . . . . . . . . . Kills | -11 -10 -10 -9 -9 -8 -7 -7 -6 -6 -6 ------- Run | Yrd Mat Min Mat Min Mat Fac Sto Fac Was Fac Combat Hostiles Destroyed 143 | . 6 . 11 13 15 37 49 . . 12 Melee 56 | . 3 . 10 13 15 9 6 . . . Guns 18 | . . . . . . 2 13 . . 3 Cannons 61 | . . . 1 . . 24 29 . . 7 AOE 2 | . . . . . . 1 . . . 1 Classes Destroyed 17 | . 4 1 2 3 2 4 . 1 . . Worker 12 | . 2 . 2 2 . 5 1 . . . Builder 10 | . . . . 2 2 1 5 . . . Tunneler 2 | . . . . 2 . . . . . . Hauler 12 | . 1 . 2 . 1 1 6 . . 1 Recycler 6 | . . 1 1 1 . 1 2 . . . Operator 1 | . . . . . . . . 1 . . Watcher 9 | . 1 . 1 . . 2 2 . . 3 Swarmer 29 | . . . 6 8 3 4 5 . . 3 Grunt 53 | . 6 . 2 3 8 10 21 . . 3 Brawler 1 | . . . . . 1 . . . . . Duelist 1 | . . . . . . 1 . . . . Sentry 27 | . . . 3 . 2 3 16 . . 3 Specialist 5 | . . . . . . 5 . . . . Hunter 6 | . . . . . 1 2 1 . . 2 Programmer 18 | . . . . . . 11 6 . . 1 Heavy 1 | . . . . . . 1 . . . . Assembled 2 | . . . . 2 . . . . . . Best Kill Streak 6 | . 3 1 6 4 5 6 6 1 . 3 Combat Bots Only 5 | . 3 . 3 4 5 5 4 . . 3 Max Kills in Single Turn 3 | . 1 1 1 1 1 3 1 1 . 1 Gunslinging . | . . . . . . . . . . . Exploded 1 | . . . . . . 1 . . . 1 Melee 1 | . 1 . 1 1 1 1 1 . . . Uniques/NPCs Destroyed . | . . . . . . . . . . . Combat | -11 -10 -10 -9 -9 -8 -7 -7 -6 -6 -6 -------- Run | Yrd Mat Min Mat Min Mat Fac Sto Fac Was Fac Hostile Shots Fired 2289 | . 21 . 45 87 153 338 1198 . . 447 Missed 716 | . 6 . 9 22 43 120 410 . . 106 Damage Taken 14024 | . 211 . 280 440 1253 2432 5627 . . 3781 Core 1931 | . 58 . 74 170 121 218 430 . . 860 Absorbed by Shields . | . . . . . . . . . . . Redirected to Shielding 540 | . . . 24 41 . 235 63 . . 177 Ignored by Resistances 4789 | . 62 . 85 143 369 719 2091 . . 1320 Regen/Repaired (Parts) 945 | . . . 34 . . 223 688 . . . Core Remaining (%) 60 | 100 . 76 . 39 78 . 7 . . . Volleys Fired 374 | . 2 . 5 . . 86 192 2 5 82 Largest 2 | . 1 . 1 . . 2 2 2 2 2 Hottest 151 | . 20 . 68 . . 128 128 98 98 151 Shots Fired 592 | . 2 . 5 . . 142 322 3 7 111 Gun 186 | . 2 . . . . 16 130 1 2 35 Cannon 404 | . . . 5 . . 126 192 2 5 74 Launcher 2 | . . . . . . . . . . 2 Special . | . . . . . . . . . . . Kinetic 374 | . 2 . . . . 105 181 2 5 79 Thermal 188 | . . . 5 . . 37 140 . . 6 Explosive 2 | . . . . . . . . . . 2 Electromagnetic 28 | . . . . . . . 1 1 2 24 Robot Hit Streak 57 | . . . 5 . . 12 57 27 36 56 Robot Miss Streak 4 | . 2 . . . . 2 4 . . 3 Penetration Max 1 | . . . . . . 1 1 . . . Secondary Targets . | . . . . . . . . . . . Shots Hit Robots 683 | . 24 1 37 34 41 146 295 3 7 95 Core Hits 262 | . 3 . 13 17 20 58 113 2 1 35 Critical Kills 5 | . 2 . . . . 3 . . . . Critical Parts Destroyed 7 | . 4 1 . . . 1 1 . . . Critical Strikes 58 | . 6 1 1 1 4 16 21 . . 8 Burn 4 | . . . . . . . 4 . . . Meltdown 1 | . . . . . . 1 . . . . Destroy 3 | . . . . . . 3 . . . . Blast 26 | . . . . . . 7 14 . . 5 Corrupt 3 | . . . . . . . . . . 3 Smash 8 | . 6 1 . . . . 1 . . . Sever 13 | . . . 1 1 4 5 2 . . . Melee Attacks 267 | . 24 1 39 82 47 40 34 . . . Impact 32 | . 24 1 . . . . 7 . . . Slashing 235 | . . . 39 82 47 40 27 . . . Piercing . | . . . . . . . . . . . Sneak Attacks 29 | . 5 1 7 8 4 3 1 . . . Combat Hostiles . | . . . . . . . . . . . Follow-up Attacks 24 | . 3 . 7 3 6 5 . . . . Damage Inflicted 21007 | . 773 69 1448 1555 1557 4677 7641 106 148 3033 Guns 3643 | . . . . . . 313 2396 45 8 881 Cannons 8958 | . . . 104 . . 2691 4200 61 140 1762 Explosions 480 | . . . . . . 90 . . . 390 Melee 7923 | . 773 69 1344 1555 1557 1583 1042 . . . Ramming 3 | . . . . . . . 3 . . . Kinetic 8169 | . . . . . . 2307 3974 61 140 1687 Thermal 3684 | . . . 104 . . 697 2622 . . 261 Explosive 417 | . . . . . . 90 . . . 327 Electromagnetic 811 | . . . . . . . . 45 8 758 Impact 1033 | . 773 69 . . . . 191 . . . Slashing 6890 | . . . 1344 1555 1557 1583 851 . . . Piercing . | . . . . . . . . . . . Highest Corruption 3 | . 3 3 . . . 3 3 . . . Average Corruption 2 | . 2 3 . . . 2 2 . . . Corruption Purged 7 | . . . . . . 2 5 . . . Corruption Blocked 1 | . . . . . . . . . . 1 Effects 106 | . 2 6 . . . 56 42 . . . Message Errors 16 | . . 3 . . . 6 7 . . . Matter Fused 44 | . . 3 . . . 24 17 . . . Heat Flow Errors 8 | . . . . . . 5 3 . . . Energy Discharges 11 | . 1 . . . . 6 4 . . . Parts Rejected 1 | . . . . . . . 1 . . . Parts Fused 2 | . 1 . . . . . 1 . . . Data Loss (minor) 13 | . . . . . . 8 5 . . . Data Loss (major) 3 | . . . . . . 1 2 . . . Misfires 6 | . . . . . . 4 2 . . . Alerts 1 | . . . . . . 1 . . . . Weapon Failures 1 | . . . . . . 1 . . . . Overload Shots . | . . . . . . . . . . . Overflow Damage 1102 | . 222 69 149 228 11 149 176 . . 98 Projectiles 224 | . . . . . . 73 84 . . 67 Explosions 31 | . . . . . . . . . . 31 Melee 847 | . 222 69 149 228 11 76 92 . . . Knockbacks 63 | . 5 . . . . 17 22 1 . 18 Impact 5 | . 4 . . . . . 1 . . . Kinetic 52 | . . . . . . 15 20 1 . 16 Secondary 6 | . 1 . . . . 2 1 . . 2 Self-Inflicted Damage 68 | . . . . . . . . . . 68 Shots 2 | . . . . . . . . . . 2 Rammed 3 | . . . . . . . 3 . . . Targets Rammed 3 | . . . . . . . 3 . . . Kicked . | . . . . . . . . . . . Crushed . | . . . . . . . . . . . Highest Temperature 328 | . 7 . 106 . 24 279 220 . 18 328 Average Temperature 60 | . 7 . 49 . 7 56 35 . 10 135 Received Heat Transfer 4499 | . 126 . 78 113 729 420 2544 . . 489 Effects 1 | . . . . . . . . . . 1 Energy Bleed 1 | . . . . . . . . . . 1 Siege Activations . | . . . . . . . . . . . Robots Corrupted 1 | . . . . . . . . . . 1 Combat Hostiles . | . . . . . . . . . . . Parts Fried 15 | . 10 2 . . . . 2 . . 1 Impact Corruptions 14 | . 11 2 . . . . 1 . . . Robots Melted 2 | . . . . . . 1 1 . . . Combat Hostiles 2 | . . . . . . 1 1 . . . Parts Melted 9 | . . . 1 . . . 5 . . 3 Heat Transferred 7846 | . . . 185 . . 1300 5961 . . 400 Parts Sabotaged . | . . . . . . . . . . . Parts Stolen . | . . . . . . . . . . . Parts Stripped . | . . . . . . . . . . . Power Chain Reactions 1 | . . . . . . . . . . 1 Alert | -11 -10 -10 -9 -9 -8 -7 -7 -6 -6 -6 ------- Run | Yrd Mat Min Mat Min Mat Fac Sto Fac Was Fac Peak Influence 409 | . 259 24 270 278 409 278 402 70 20 280 Initial 51 | . . 19 7 23 . 51 . 10 20 12 Average 97 | . 135 20 115 70 172 50 158 28 20 87 Maximum Alert Level 2 | . 1 . 1 1 2 1 2 . . 1 Low Security (%) 80 | 100 58 100 73 90 48 98 58 100 100 93 Level 1 18 | . 41 . 26 9 47 1 40 . . 6 Level 2 . | . . . . . 3 . 1 . . . Level 3 . | . . . . . . . . . . . Level 4 . | . . . . . . . . . . . Level 5 . | . . . . . . . . . . . High Security . | . . . . . . . . . . . Max Security . | . . . . . . . . . . . Squads Dispatched 49 | . . . 1 . 2 15 24 2 . 5 Investigation 11 | . . . 1 . 1 2 3 2 . 2 Extermination 16 | . . . . . . 8 7 . . 1 Reinforcement 14 | . . . . . 1 5 6 . . 2 Assault 1 | . . . . . . . 1 . . . Garrison 7 | . . . . . . . 7 . . . Intercept . | . . . . . . . . . . . Searches Triggered . | . . . . . . . . . . . Construction Impeded 2 | . . . . . . . 1 . . 1 Haulers Reinforced 5 | . . . . . . . 5 . . . Active Scanning Responses . | . . . . . . . . . . . Cargo Convoy Interrupts 1 | . . . . . . 1 . . . . Stealth | -11 -10 -10 -9 -9 -8 -7 -7 -6 -6 -6 --------- Run | Yrd Mat Min Mat Min Mat Fac Sto Fac Was Fac Distress Signals 10 | . 1 . . . 4 . 4 . . 1 Communications Jammed 2 | . . . . . . 2 . . . . Distress Signals 2 | . . . . . . 2 . . . . Times Spotted 224 | . 12 . 13 19 26 48 71 1 1 33 Peak Tracking Total 10 | . 7 . 3 4 7 5 10 2 1 7 Tactical Retreats 15 | . 3 . . 4 1 . 6 . . 1 Traps | -11 -10 -10 -9 -9 -8 -7 -7 -6 -6 -6 ------- Run | Yrd Mat Min Mat Min Mat Fac Sto Fac Was Fac Traps Triggered 14 | . 3 . 1 . 1 5 1 1 . 2 Indirectly 2 | . . . . . . . . . . 2 Trap Hack Attempts . | . . . . . . . . . . . Triggered . | . . . . . . . . . . . Disarmed . | . . . . . . . . . . . Reprogrammed . | . . . . . . . . . . . Reused . | . . . . . . . . . . . Traps Extracted . | . . . . . . . . . . . Installed . | . . . . . . . . . . . Triggered 1 | . . . . 1 . . . . . . Machines | -11 -10 -10 -9 -9 -8 -7 -7 -6 -6 -6 ---------- Run | Yrd Mat Min Mat Min Mat Fac Sto Fac Was Fac Machines Disabled 12 | . . . . . 1 5 4 . . 2 Max in Single Turn 2 | . . . . . . 2 1 . . 1 Garrison Access 1 | . . . . . . . 1 . . . Machines Repaired . | . . . . . . . . . . . Machines Dismantled 2 | . . . . . . . 2 . . . Machines Sabotaged . | . . . . . . . . . . . Overloaded Fab Kills . | . . . . . . . . . . . Hacking | -11 -10 -10 -9 -9 -8 -7 -7 -6 -6 -6 --------- Run | Yrd Mat Min Mat Min Mat Fac Sto Fac Was Fac Machines Accessed 43 | . 5 . 8 . 2 12 9 4 . 3 Terminals 32 | . 5 . 6 . 1 8 5 4 . 3 Fabricators 2 | . . . . . . 2 . . . . Repair Stations 4 | . . . 1 . . 1 2 . . . Recycling Units 2 | . . . . . . 1 1 . . . Scanalyzers 2 | . . . 1 . 1 . . . . . Garrison Access 1 | . . . . . . . 1 . . . Total Hacks 127 | . 14 . 28 . 8 31 28 11 . 7 Successful 73 | . 6 . 22 . 6 12 20 5 . 2 Failed 54 | . 8 . 6 . 2 19 8 6 . 5 Catastrophic 6 | . . . . . 1 2 . 2 . 1 Database Lockouts . | . . . . . . . . . . . Manual 70 | . 6 . 18 . 1 19 9 10 . 7 Terminals 85 | . 14 . 17 . 1 20 15 11 . 7 Fabricators 3 | . . . . . . 3 . . . . Repair Stations 17 | . . . 4 . . 5 8 . . . Recycling Units 6 | . . . . . . 3 3 . . . Scanalyzers 14 | . . . 7 . 7 . . . . . Garrison Access 2 | . . . . . . . 2 . . . Terminal Hacks 13 | . 4 . 3 . . . 4 2 . . Part Schematic 1 | . . . 1 . . . . . . . Robot Analysis 3 | . 2 . 1 . . . . . . . Prototype ID Bank 4 | . . . . . . . 3 1 . . Branch Access Points 2 | . 1 . . . . . . 1 . . Alert Level 1 | . . . 1 . . . . . . . Unreport Threat 2 | . 1 . . . . . 1 . . . Fabricator Hacks 1 | . . . . . . 1 . . . . Network Status 1 | . . . . . . 1 . . . . Repair Station Hacks 15 | . . . 4 . . 3 8 . . . Scan Component 8 | . . . 2 . . 2 4 . . . Repair 7 | . . . 2 . . 1 4 . . . Recycling Unit Hacks 5 | . . . . . . 3 2 . . . Process 1 | . . . . . . 1 . . . . Report Inventory 2 | . . . . . . 1 1 . . . Retrieve Matter 1 | . . . . . . 1 . . . . Retrieve Components 1 | . . . . . . . 1 . . . Scanalyzer 13 | . . . 7 . 6 . . . . . Insert Component 7 | . . . 4 . 3 . . . . . Analyze 6 | . . . 3 . 3 . . . . . Garrison Access Hacks . | . . . . . . . . . . . Unauthorized Hacks 26 | . 2 . 8 . . 5 6 3 . 2 Terminals 25 | . 2 . 8 . . 5 5 3 . 2 Assimilate 3 | . . . 2 . . . . . . 1 Botnet 22 | . 2 . 6 . . 5 5 3 . 1 Fabricators . | . . . . . . . . . . . Repair Stations . | . . . . . . . . . . . Recycling Units . | . . . . . . . . . . . Scanalyzers . | . . . . . . . . . . . Garrison Access 1 | . . . . . . . 1 . . . Reprogram 1 | . . . . . . . 1 . . . Data Cores Recovered 1 | . . . . . . . . 1 . . Used . | . . . . . . . . . . . Hacking Detections 40 | . 5 . 8 . 2 10 8 4 . 3 Full Trace Events 9 | . . . 1 . 1 1 2 2 . 2 Feedback Events . | . . . . . . . . . . . Feedback Blocked . | . . . . . . . . . . . Robot Schematics Acquired . | . . . . . . . . . . . Robots Built . | . . . . . . . . . . . Authchips . | . . . . . . . . . . . Time . | . . . . . . . . . . . Total Robot Build Rating . | . . . . . . . . . . . Part Schematics Acquired 7 | . . . 4 . 3 . . . . . Parts Built . | . . . . . . . . . . . Authchips . | . . . . . . . . . . . Time . | . . . . . . . . . . . Total Part Build Rating . | . . . . . . . . . . . Parts Repaired 7 | . . . 2 . . 1 4 . . . Time 217 | . . . 52 . . 19 146 . . . Parts Recycled . | . . . . . . . . . . . Recycled Matter 676 | . . . . . . 676 . . . . Retrieved Matter 987 | . . . . . . 987 . . . . Retrieved Components 10 | . . . . . . . 10 . . . Parts Scanalyzed 6 | . . . 3 . 3 . . . . . Part Schematics Acquired 6 | . . . 3 . 3 . . . . . Parts Damaged . | . . . . . . . . . . . Bothacking | -11 -10 -10 -9 -9 -8 -7 -7 -6 -6 -6 ------------ Run | Yrd Mat Min Mat Min Mat Fac Sto Fac Was Fac Used RIF Installer . | . . . . . . . . . . . Robots Hacked . | . . . . . . . . . . . Non-combat . | . . . . . . . . . . . Combat . | . . . . . . . . . . . Robot Hacks Applied . | . . . . . . . . . . . Relay Couplers Released 4 | . . . . . . 3 1 . . . Machine Destruction 1 | . . . . . . . 1 . . . Programmers 3 | . . . . . . 3 . . . . Fabnet Peak Effective % . | . . . . . . . . . . . Robots Rewired . | . . . . . . . . . . . Allies Hacked 1 | . . . . . . . 1 . . . Hacks Repelled . | . . . . . . . . . . . Allies | -11 -10 -10 -9 -9 -8 -7 -7 -6 -6 -6 -------- Run | Yrd Mat Min Mat Min Mat Fac Sto Fac Was Fac Total Allies 19 | . . 2 . 1 . . 15 . . 1 Largest Group 10 | . . 2 2 1 1 . 10 10 7 7 Highest-Rated Group 173 | . . 41 41 31 31 . 173 173 112 112 Highest-Rated Ally 100 | . . 31 31 31 31 . 100 29 16 26 Total Orders . | . . . . . . . . . . . Ally Attacks 195 | . . . 5 9 14 . 71 33 25 38 Total Damage 2796 | . . . 65 44 233 . 1188 444 325 497 Kills 21 | . . . . . 4 . 8 3 1 5 Allies Corrupted . | . . . . . . . . . . . Allies Melted . | . . . . . . . . . . . Intel | -11 -10 -10 -9 -9 -8 -7 -7 -6 -6 -6 ------- Run | Yrd Mat Min Mat Min Mat Fac Sto Fac Was Fac Robot Analysis Total 3 | . 2 . 1 . . . . . . . Derelict Logs Recovered 2 | . . 1 . 1 . . . . . . Drone Launches . | . . . . . . . . . . . Drone Recoveries . | . . . . . . . . . . . Exploration | -11 -10 -10 -9 -9 -8 -7 -7 -6 -6 -6 ------------- Run | Yrd Mat Min Mat Min Mat Fac Sto Fac Was Fac Turns Passed 15424 | 48 428 224 800 1896 1133 4866 3993 349 373 1314 Spaces Moved 6981 | 46 365 146 532 1302 560 1892 1166 177 158 637 Core 15 | 13 . . . . . . . . . 2 Treads 2591 | . . . . . 404 98 1120 177 158 634 Legs 1840 | . . . . . . 1794 46 . . . Wheels 2535 | 33 365 146 532 1302 156 . . . . 1 Hover . | . . . . . . . . . . . Flight . | . . . . . . . . . . . Fastest Speed 50 | 50 90 90 90 80 95 182 189 162 160 160 Average Speed 166 | 78 90 90 91 97 172 203 245 185 192 165 Slowest Speed 1550 | 90 90 90 95 115 250 360 330 242 242 1550 Overloaded Moves . | . . . . . . . . . . . Propulsion Burnouts . | . . . . . . . . . . . Robots Hopped . | . . . . . . . . . . . Cave-ins Triggered . | . . . . . . . . . . . Exploration Rate (%) 47 | 3 55 40 45 101 32 47 94 5 82 19 Regions Visited 10 Branch Regions 3 Pre-discovered Areas 2 | . . 2 . . . . . . . . Known Exits Taken 3 | . 1 1 . 1 . . . . . . Unknown Exits Taken 5 | 1 . . 1 . 1 1 1 . . . Scrap Searched 7 | . . 3 . 4 . . . . . . Spaces Dug 6 | . . . 1 5 . . . . . . Terrain Destroyed 101 | . . . 1 5 . 31 38 . . 26 Melee 6 | . . . 1 5 . . . . . . Projectile 50 | . . . . . . 6 38 . . 6 AOE 45 | . . . . . . 25 . . . 20 Terrain Rammed . | . . . . . . . . . . . Walls Destroyed . | . . . . . . . . . . . Machines Disabled . | . . . . . . . . . . . Actions | -11 -10 -10 -9 -9 -8 -7 -7 -6 -6 -6 --------- Run | Yrd Mat Min Mat Min Mat Fac Sto Fac Was Fac Total 9862 | 57 426 238 791 1801 665 2753 1907 200 226 798 Wait 1692 | . 14 83 179 397 14 567 353 . 47 38 Move 6972 | 45 364 145 531 1301 559 1891 1165 177 157 637 Hop . | . . . . . . . . . . . Pick Up 167 | 6 15 5 12 8 23 45 37 6 3 7 Fast Attach 48 | . . . 6 2 6 15 11 2 2 4 Attach 55 | 6 2 . 2 1 3 10 17 2 . 12 Detach 2 | . . . . . . 2 . . . . Swap 101 | . 2 1 8 13 6 29 32 3 2 5 Drop 191 | . 6 3 18 9 16 65 43 8 10 13 Fire 374 | . 2 . 5 . . 86 192 2 5 82 Melee 227 | . 21 1 30 70 38 33 34 . . . Ram . | . . . . . . . . . . . Kick . | . . . . . . . . . . . Crush 3 | . . . . . . . 3 . . . Escape Stasis 12 | . . . . . . 10 2 . . . Rewire 8 | . . . . . . . 8 . . . Trap . | . . . . . . . . . . . Miscellaneous 10 | . . . . . . . 10 . . . Route ------- -11/Scrapyard -10/Materials (discovered 3 exits: *Mat / *Min x2) -10/Mines -9/Materials -9/Mines (discovered 2 exits: *Mat x2) -8/Materials -7/Factory -7/Storage (discovered 2 exits: *Fac / [*Rec]) -6/Factory (discovered 2 exits: Low x2) -6/Waste -6/Factory History --------- Turn | Location | Event 9 | -11/Scrapyard | Discovered new exit (range 15) 49 | -11/Scrapyard | Entered Materials 241 | -10/Materials | Discovered new exit (range 16) 332 | -10/Materials | Identified exit to Mines 333 | -10/Materials | Build established: Mutant 477 | -10/Materials | Entered Mines 478 | -10/Mines | Learned location of Storage (-7) 660 | -10/Mines | Learned location of Zion (-6) 683 | -10/Mines | Discovered new exit (range 10) 700 | -10/Mines | Identified exit to Materials 701 | -10/Mines | Entered Materials 701 | -9/Materials | Accompanied by 2 allies 701 | -9/Materials | Evolved 2 slots: Utility x2 706 | -9/Materials | Led the pair of lost Derelicts to an unsafe place 884 | -9/Materials | Repaired Propulsion Shielding 911 | -9/Materials | Repaired Hcp. Matter Pod 1439 | -9/Materials | Discovered new exit (range 11) 1501 | -9/Materials | Entered Mines 1574 | -9/Mines | Excavation squad dispatched 1574 | -9/Mines | A large section of the Mines collapsed 1747 | -9/Mines | Identified exit to Materials 1788 | -9/Mines | Discovered exit to Materials (range 16) 1838 | -9/Mines | Core integrity fell below 50% 2079 | -9/Mines | Build established: Derelict-Mutant 2372 | -9/Mines | Escorted by a lone wolf Derelict 2925 | -9/Mines | Build established: Scavenger-Mutant 3397 | -9/Mines | Entered Materials 3397 | -8/Materials | Accompanied by 1 ally 3397 | -8/Materials | Evolved 2 slots: Propulsion x1, Utility x1 3859 | -8/Materials | Build established: Mutant 4216 | -8/Materials | Build established: Gladiator 4492 | -8/Materials | Discovered new exit (range 16) 4530 | -8/Materials | Entered Factory 4530 | -7/Factory | Evolved 2 slots: Propulsion x1, Utility x1 5200 | -7/Factory | Build established: Scavenger-Gladiator 5481 | -7/Factory | Cargo convoy interrupted 5811 | -7/Factory | Build established: Scavenger-Mutant 6018 | -7/Factory | Repaired Arm. Treads 8225 | -7/Factory | Build established: Mutant 9154 | -7/Factory | Build established: Scavenger-Mutant 9337 | -7/Factory | Discovered new exit (range 15) 9396 | -7/Factory | Entered Storage 9607 | -7/Storage | Core integrity fell below 50% 9641 | -7/Storage | Lost 7 parts (1p3n2u1w) 9919 | -7/Storage | Build established: Mutant 10403 | -7/Storage | Repaired Core Shielding 10449 | -7/Storage | Repaired Gauss Cannon 10631 | -7/Storage | Met 01-MTF 11483 | -7/Storage | Discovered new exit (range 7) 11912 | -7/Storage | Garrison activated, responded to threat 11936 | -7/Storage | Found 01-MTF's Shockpuncher 12217 | -7/Storage | Repaired Arm. Treads 12257 | -7/Storage | Repaired Hrd. Medium Armor Plating 12473 | -7/Storage | Core integrity fell below 20% 12516 | -7/Storage | Lost 3 parts (1n2u) 12821 | -7/Storage | Build established: Scavenger-Mutant 13057 | -7/Storage | Lost 3 parts (2n1u) 13304 | -7/Storage | Assisted by bots powering up and referring to "LRC-V3" 13326 | -7/Storage | Discovered new exit (range 6) 13389 | -7/Storage | Entered Factory 13389 | -6/Factory | Accompanied by 10 allies 13389 | -6/Factory | Evolved 2 slots: Power x1, Propulsion x1 13569 | -6/Factory | Identified exit to Lower Caves 13605 | -6/Factory | Build established: Commander-Mutant 13659 | -6/Factory | Lost 3 allies 13738 | -6/Factory | Sucked down chute 13738 | -6/Factory | Entered Waste 13738 | -6/Waste | The area was eerily silent 13908 | -6/Waste | 7 allies followed down the chute 14028 | -6/Waste | A Compactor rumbled back to life 14039 | -6/Waste | Allies destroyed C-40 Crusher 14060 | -6/Waste | Discovered new exit (range 12) 14111 | -6/Waste | Entered Factory 14111 | -6/Factory | Accompanied by 7 allies 14205 | -6/Factory | Lost 5 allies 14466 | -6/Factory | Build established: Scavenger-Mutant 15360 | -6/Factory | Core integrity fell below 50% 15390 | -6/Factory | Lost 17 parts (4p4n4u5w) 15403 | -6/Factory | Core integrity fell below 20% 15425 | -6/Factory | Destroyed by G-50 Soldier with Heavy Laser Last Messages --------------- 15404_ U-05 Engineer builds a Wall. 15406_ U-05 Engineer lays Concrete. 15407_ U-05 Engineer builds a Wall. 15407_ S-27 Virus suffers critical hit (Blast). 15407_ Destroyed VTOL Module. 15407_ S-27 Virus knocked back. 15409_ Penetrated by Slug. 15409_ U-05 Engineer lays Concrete. 15412_ Lgt. Treads destroyed. 15412_ U-05 Engineer builds a Wall. 15413_ U-05 Engineer lays Concrete. 15413_ S-27 Virus destroyed. 15414_ The unstable cave ceiling collapses. 15414_ U-05 Engineer lays Concrete. 15414_ Penetrated by Slug. 15415_ U-05 Engineer lays Concrete. 15416_ K-01 Serf collects debris. 15417_ U-05 Engineer lays Concrete. 15424_ K-01 Serf collects debris. 15424_ U-05 Engineer lays Concrete. Map ----- +----------------------------------------------------+ | ?????????????# #??????????????????????? | | ?????????????# #??????????????????????? | | ?????????????# #??????????????????????? | | ?????????????# #??????????????????????? | | ?????????????# #??????????????????????? | | ?????????????# #??????????????????????? | | ?????????????# #??????????????????????? | | ?????????????# #??????????????????????? | | ????########## #??????????????????????? | | ????# #??????????????????????? | | ????# ######## #??????????????????????? | | ????# #??????# #??????????????????????? | | ????# #??????#t#??????????????????????? | | ????# #??????# #??????????????????????? | | ????# ######## #??????????????????????? | | ??### # # # # #?????""""?????????????? | | ### # #?????""""?????????????? | | # # ### # #???? ??????????????? | | # # ##### ??? !???????????? | | # # # # #?##+####?????????? | | # # ## "?????????? | | # # = % ##????????? | | # %h ^ k % =%????????? | | u =+%[ g = ???????? | | *!# %=* g ???????? | | !@ %%% %% m ;#????????? | | # * # ;# ## #?????????? | | # %[ # ##?# ###?????????? | | # [ / # ###?#???? #???????????? | | # [# #????????? #???????????? | | ################??????????????????????? | | ??????????????????????????????????????? | | ??????????????????????????????????????? | | ??????????????????????????????????????? | | ??????????????????????????????????????? | | ??????????????????????????????????????? | | ??????????????????????????????????????? | | ??????????????????????????????????????? | | ??????????????????????????????????????? | | ??????????????????????????????????????? | | ??????????????????????????????????????? | | ??????????????????????????????????????? | | ??????????????????????????????????????? | | ??????????????????????????????????????? | | ??????????????????????????????????????? | | ??????????????????????????????????????? | | ??????????????????????????????????????? | | ??????????????????????????????????????? | | ??????????????????????????????????????? | | ??????????????????????????????????????? | +----------------------------------------------------+ Best States ------------- Heat Dissipation 83 Energy Generation 37 Energy Capacity 800 Matter Stores 300 Matter Capacity 300 Sight Range 16 Robot Scan Range 15 Terrain Scan Range 16 Terrain Scan Density 110 Jamming Range 12 EM Shielding 2 Corruption Block 8 Armor Coverage 450 Resistance: KI 50 Resistance: TH 30 Resistance: EX 20 Resistance: EM 35 Resistance: I 20 Resistance: S 20 Resistance: P 20 Core Shielding 30 Propulsion Shielding 66 Utility Shielding 66 Melee Speed Boost 20 Evasion (%) 50 Targeting Accuracy 6 Melee Accuracy 6 Target Analysis 7 Recoil Reduction 5 Force Boost 20 Salvage Targeting 2 Offensive Hacking 10 Item Schematics ----------------- Huge Storage Unit | -9/Materials | Hacked Hcp. Battery | -9/Materials | Scanalyzed Transport Network Coupler | -9/Materials | Scanalyzed Hcp. Matter Pod | -9/Materials | Scanalyzed Gauss Cannon | -8/Materials | Scanalyzed Cooling System | -8/Materials | Scanalyzed Field Laser | -8/Materials | Scanalyzed Robot Schematics ------------------ None Fabricated ------------ Nothing Alien Tech Used ----------------- None Achievements -------------- None Challenges ------------ None Game ------ Seed BackupBoreDriver Manual? 0 Play Time 01:49:15 Cumulative 65.9 hours Start 2024.07.23 @ 11:50:22 End 2024.07.23 @ 14:04:35 Sessions 1 Manual Loads 0 Difficulty Adventurer Special Mode None Game No. 97 Rogue 0 Adventurer 97 Explorer 0 Win Type - Total 0 Types 0/0/0/0/0/0/0/0/0 Lore% 44 Gallery% 42 Achievement% 32 Wizard Run 0 Options --------- Layout 2 ASCII 0 Keyboard 0 Movement Mouse Keybinds 0 Fullscreen 2 Font 48/Smallcaps Map View 50x44 Zoom Use 0% Tactical HUD 1 Map Filters NONE Filters NONE Steam 1 RUN: b394cf41-297e-4860-b700-73b59feca64c